bitfinex-derivatives/quotes_ETHF0:USTF0_20210405
["timestamp","ask_amount","ask_price","bid_price","bid_amount"]
[1617635241751,2.90695,2108.7,2108.6,37.01]
[1617635242453,0.01358395,2109.9,2108.6,37.01]
[1617635242655,0.01358395,2109.9,2109.2,2.90695]
[1617635242855,0.01358395,2109.9,2109.2,35.66015]
[1617635243054,0.01358395,2109.9,2109.3,7.89]
[1617635243254,2.58460899,2110.1,2109.3,7.89]
[1617635243455,2.571,2110.1,2109.3,37.89]
[1617635244655,2.571,2110.1,2109.7,2.90695]
[1617635245055,2.571,2110.1,2109.8,5.68]
[1617635246457,0.6575723,2110.0,2109.8,5.68]
[1617635246657,2.90695,2109.9,2109.8,5.68]
[1617635247859,3.34536027,2109.9,2109.8,3.30695776]
[1617635250462,0.43841027,2109.9,2109.8,3.30695776]
[1617635250663,0.43841027,2109.9,2109.8,33.30695776]
[1617635250866,3.2286154,2110.1,2109.8,33.30695776]
[1617635251067,3.2286154,2110.1,2109.8,35.46625776]
[1617635251262,0.27376388,2109.9,2109.8,35.46625776]
[1617635251663,0.05481574,2109.9,2109.8,35.46625776]
[1617635251863,0.13703934,2110.0,2109.8,35.46625776]
[1617635252065,2.571,2110.1,2109.8,5.46625776]
[1617635252263,2.571,2110.1,2109.8,3.30695776]
[1617635252764,2.571,2110.1,2110.0,2.90695]
[1617635253164,2.571,2110.1,2110.0,8.60695]
[1617635254266,2.571,2110.1,2110.0,12.00185]
[1617635254465,2.571,2110.1,2110.0,11.05665]
[1617635254665,5.47795,2110.1,2110.0,11.05665]
[1617635254865,5.47795,2110.1,2110.0,8.1497]
[1617635255268,5.47795,2110.1,2110.0,5.7]
[1617635255670,5.47795,2110.1,2109.7,5.95]
[1617635256068,5.47795,2110.1,2110.0,5.75]
[1617635256269,5.47795,2110.1,2109.7,35.88]
[1617635256470,5.47795,2110.1,2109.8,5.86]
[1617635256672,5.47795,2110.1,2110.0,5.79]
[1617635256870,5.47795,2110.1,2110.0,38.93220321]
[1617635257071,5.47795,2110.1,2110.0,35.51475]
[1617635257271,2.571,2110.1,2110.0,35.51475]
[1617635257470,2.571,2110.1,2110.0,43.37475]
[1617635257870,2.571,2110.1,2110.0,44.31335]
[1617635258270,2.571,2110.1,2110.0,13.37475]
[1617635258470,2.571,2110.1,2110.0,8.4678]
[1617635258870,5.47795,2110.1,2110.0,5.86]
[1617635259273,5.47795,2110.1,2109.9,2.90695]
[1617635259471,5.47795,2110.1,2109.9,4.90695]
[1617635259674,5.47795,2110.1,2110.0,5.72]
[1617635260072,5.47795,2110.1,2110.0,8.4149]
[1617635260873,5.47795,2110.1,2110.0,38.4149]
[1617635261072,2.571,2110.1,2110.0,38.4149]
[1617635262675,2.59843451,2110.1,2110.0,38.4149]
[1617635263275,2.59843451,2110.1,2110.0,40.4149]
[1617635264577,0.88453451,2110.1,2110.0,40.4149]
[1617635264978,0.02743451,2110.1,2110.0,40.4149]
[1617635265378,2.90695,2110.4,2110.0,40.4149]
[1617635266781,2.90695,2110.1,2110.0,40.4149]
[1617635266981,2.90695,2110.1,2110.0,10.4149]
[1617635268680,17.90695,2110.1,2110.0,10.4149]
[1617635270080,17.90695,2110.1,2110.0,40.4149]
[1617635273588,15.0,2110.1,2110.0,40.4149]
[1617635273789,4.4214,2110.1,2110.0,40.4149]
[1617635273990,0.65827847,2110.6,2110.0,40.4149]
[1617635274491,0.02749329,2110.3,2110.0,40.4149]
[1617635274690,2.571,2110.8,2110.0,40.4149]
[1617635275090,0.65979553,2111.0,2110.0,40.4149]
[1617635275290,0.65993485,2111.1,2110.0,40.4149]
[1617635275490,0.87991313,2111.3,2110.0,40.4149]
[1617635275491,0.66019301,2111.3,2110.0,40.4149]
[1617635275691,0.66019301,2111.3,2110.8,64.1898]
[1617635275891,0.66030408,2111.4,2110.9,32.0]
[1617635276090,0.66030408,2111.4,2110.9,37.7]
[1617635276491,0.66030408,2111.4,2110.9,35.3280378]
[1617635276691,0.66030408,2111.4,2111.0,2.0]
[1617635276892,0.66030408,2111.4,2111.3,2.90695]
[1617635277092,0.66014947,2111.5,2111.3,36.7482878]
[1617635277292,0.66014947,2111.5,2111.3,42.6382878]
[1617635278295,0.65987007,2111.6,2111.3,42.6382878]
[1617635279001,0.65924585,2111.5,2111.3,42.6382878]
[1617635280198,0.65870575,2111.6,2111.3,42.6382878]
[1617635281399,5.75e-06,2111.6,2111.3,42.6382878]
[1617635281803,2.90695,2111.9,2111.3,42.6382878]
[1617635282900,2.90695,2111.9,2111.8,2.90695]
[1617635283102,2.90695,2111.9,2111.8,32.5349878]
[1617635283302,2.90695,2111.9,2111.8,38.2149878]
[1617635283701,2.571,2112.0,2111.8,38.2149878]
[1617635285202,2.571,2112.0,2111.8,8.58695]
[1617635285603,2.571,2112.0,2111.8,5.68]
[1617635285804,2.571,2112.0,2111.8,3.30987121]
[1617635286004,2.571,2112.0,2111.2,35.7]
[1617635286405,2.571,2112.0,2111.9,5.71]
[1617635286605,2.571,2112.0,2111.3,5.81]
[1617635286811,2.571,2112.0,2111.4,30.0]
[1617635287011,5.47795,2112.0,2111.9,8.63695]
[1617635287212,5.47795,2112.0,2111.9,2.90695]
[1617635287613,5.47795,2112.0,2111.9,8.71695]
[1617635288213,5.47795,2112.0,2111.9,5.81]
[1617635288412,2.571,2112.0,2111.9,5.81]
[1617635288614,2.571,2112.0,2111.2,5.9]
[1617635288812,4.7015,2112.0,2111.2,5.9]
[1617635289012,4.7015,2112.0,2111.9,5.96]
[1617635289213,4.7015,2112.0,2111.2,5.72]
[1617635289416,4.7015,2112.0,2111.8,5.87]
[1617635289613,4.7015,2112.0,2111.9,5.72]
[1617635289813,4.7015,2112.0,2111.3,5.92]
[1617635290216,4.7015,2112.0,2111.9,5.78]
[1617635290420,4.7015,2112.0,2111.4,3.58]
[1617635290815,4.7015,2112.0,2111.3,5.83]
[1617635291014,2.90695,2111.4,2111.0,8.65695]
[1617635291214,4.80165,2111.4,2110.6,2.78]
[1617635291414,75.31025,2111.4,2111.1,5.76]
[1617635291815,75.31025,2111.4,2111.0,5.69]
[1617635292015,75.31025,2111.4,2111.2,5.85]
[1617635292415,75.31025,2111.4,2111.1,5.68]
[1617635292616,75.31025,2111.4,2111.3,5.94]
[1617635293015,75.31025,2111.4,2111.2,2.29]
[1617635293215,75.31025,2111.4,2111.3,5.62]
[1617635293616,75.31025,2111.4,2110.8,5.87]
[1617635293815,75.31025,2111.4,2111.3,5.8]
[1617635294216,75.31025,2111.4,2110.9,5.68]
[1617635294416,75.31025,2111.4,2111.3,5.95]
[1617635294617,75.31025,2111.4,2111.3,5.5736]
[1617635294816,75.31025,2111.4,2111.0,5.67]
[1617635295016,2.90695,2111.1,2111.0,5.67]
[1617635295217,2.90695,2111.1,2110.9,5.61]
[1617635295419,2.90695,2111.1,2110.9,4.6623]
[1617635295618,2.90695,2111.1,2111.0,5.79]
[1617635295819,2.90695,2111.1,2109.7,12.716]
[1617635296018,2.90695,2111.1,2110.1,5.72]
[1617635296219,3.84135,2111.1,2111.0,5.02639841]
[1617635296419,3.84135,2111.1,2109.9,2.36]
[1617635296620,3.84135,2111.1,2104.9,7.19953435]
[1617635296820,3.84135,2111.1,2111.0,5.6503]
[1617635297023,3.84135,2111.1,2110.1,5.13]
[1617635297223,3.84135,2111.1,2109.8,2.90695]
[1617635297423,3.84135,2111.1,2110.3,5.85]
[1617635297625,3.84135,2111.1,2109.9,3.34]
[1617635298025,3.84135,2111.1,2110.4,5.81]
[1617635298227,4.71359427,2111.1,2109.8,2.90695]
[1617635298423,3.84135,2111.1,2109.9,5.7]
[1617635299024,2.90695,2110.0,2109.9,5.7]
[1617635301823,73.0767,2110.4,2109.9,5.7]
[1617635303025,73.0767,2110.4,2110.2,2.90695]
[1617635303225,8.6034,2111.1,2110.2,2.90695]
[1617635303426,8.6034,2111.1,2110.3,5.96]
[1617635304626,8.6034,2111.1,2109.3,5.91]
[1617635304826,10.5437,2111.1,2109.3,5.91]
[1617635305026,10.5437,2111.1,2110.4,3.41729449]
[1617635305226,10.5437,2111.1,2109.6,2.90695]
[1617635305626,10.5437,2111.1,2110.5,2.42]
[1617635305826,10.5437,2111.1,2109.6,2.90695]
[1617635306226,10.5437,2111.1,2109.8,5.95]
[1617635306427,10.5437,2111.1,2109.7,5.96]
[1617635306627,10.5437,2111.1,2109.6,2.90695]
[1617635306829,10.5437,2111.1,2109.9,5.87]
[1617635307028,2.90695,2110.0,2109.7,5.72]
[1617635307428,2.90695,2110.0,2109.6,2.90695]
[1617635307630,5.72175,2110.0,2109.7,5.86]
[1617635308435,5.72175,2110.0,2108.8,5.89]
[1617635308636,6.67615,2110.0,2108.8,5.89]
[1617635308833,6.67615,2110.0,2109.8,5.96]
[1617635309030,6.67615,2110.0,2108.9,8.68695]
[1617635309430,6.67615,2110.0,2109.9,5.018]
[1617635309632,6.67615,2110.0,2109.0,5.78]
[1617635310032,6.67615,2110.0,2109.9,5.74]
[1617635310234,6.67615,2110.0,2108.6,13.1169]
[1617635310432,6.67615,2110.0,2109.1,4.75]
[1617635310634,79.6737,2109.5,2108.8,3.25]
[1617635310835,81.418,2109.5,2108.6,13.1169]
[1617635311033,81.418,2109.5,2109.2,2.4985]
[1617635311236,81.418,2109.5,2108.8,5.69]
[1617635311440,81.418,2109.5,2108.7,5.79]
[1617635311637,81.418,2109.5,2109.3,2.36]
[1617635311837,1.7443,2109.5,2108.9,3.51]
[1617635312037,68.2606,2109.3,2108.8,5.88]
[1617635312237,68.2606,2109.3,2109.0,2.67]
[1617635312640,68.2606,2109.3,2108.9,5.74]
[1617635312840,68.2606,2109.3,2109.1,1.29]
[1617635313040,4.90695,2109.2,2109.1,1.29]
[1617635313238,4.90695,2109.2,242.18,92.02602066]
[1617635313438,4.90695,2109.2,2109.1,1.38]
[1617635313640,34.90695,2109.2,2109.1,1.0512]
[1617635313843,4.90695,2109.2,2106.9,13.7832]
[1617635314241,67.2234,2107.3,2106.9,13.6834]
[1617635314441,69.9859,2107.3,2106.9,12.5125]
[1617635314642,69.9859,2107.3,2107.0,4.7085]
[1617635315045,2.90695,2107.1,2107.0,3.058]
[1617635315443,2.5903,2108.0,2106.9,15.41945]
[1617635315843,2.5903,2108.0,2107.0,5.73]
[1617635316445,0.9616,2109.3,2107.0,5.73]
[1617635316446,2.37456367,2107.8,2107.0,5.73]
[1617635317043,2.37456367,2107.8,2107.7,2.90695]
[1617635317244,2.37456367,2107.8,2107.7,4.84115]
[1617635317443,2.37456367,2107.8,2107.7,10.78115]
[1617635318044,2.37456367,2107.8,2107.7,7.8742]
[1617635318444,2.37456367,2107.8,2107.7,5.94]
[1617635318643,2.37456367,2107.8,2105.2,82.329]
[1617635318844,4.09126367,2107.8,2107.0,5.9]
[1617635319045,4.09126367,2107.8,2107.7,5.6]
[1617635319244,1.7167,2107.8,2106.3,3.15695]
[1617635319444,1.7167,2107.8,2107.1,5.47]
[1617635319644,1.7167,2107.8,2107.7,0.19]
[1617635319845,1.7167,2107.8,2105.2,5.72]
[1617635320043,1.7167,2107.8,2107.2,5.72]
[1617635320245,1.7167,2107.8,2107.7,2.32]
[1617635320444,0.9503,2108.1,2105.3,4.99]
[1617635320644,2.6164,2107.8,2107.3,5.3]
[1617635320844,2.6164,2107.8,2107.7,1.26]
[1617635321045,5.52335,2107.8,2106.2,2.90695]
[1617635321245,5.52335,2107.8,2107.4,5.96]
[1617635321444,5.52335,2107.8,2107.7,0.27]
[1617635321645,2.90695,2107.8,2107.7,0.27]
[1617635321844,2.90695,2107.8,2107.5,5.83]
[1617635322044,5.15295,2107.8,2107.7,4.95]
[1617635322444,5.15295,2107.8,2107.6,5.94]
[1617635322644,5.15295,2107.8,2107.7,4.7541]
[1617635323044,5.15295,2107.8,2106.4,5.66695]
[1617635323244,5.15295,2107.8,2107.7,5.93]
[1617635323644,5.15295,2107.8,2106.5,5.73]
[1617635323845,5.15295,2107.8,2106.0,2.72]
[1617635324044,5.15295,2107.8,2107.7,5.84]
[1617635324245,5.15295,2107.8,2106.6,5.8]
[1617635324445,5.15295,2107.8,2106.1,2.98]
[1617635324646,5.15295,2107.8,2107.7,5.85]
[1617635324846,5.15295,2107.8,2106.0,5.69]
[1617635325046,5.15295,2107.8,2105.8,5.56]
[1617635325047,2.246,2107.8,2106.2,3.06]
[1617635325246,2.246,2107.8,2107.7,5.636]
[1617635325447,2.246,2107.8,2106.1,5.77]
[1617635325647,2.246,2107.8,2106.3,12.8617]
[1617635325847,79.5248,2106.9,2106.3,18.7317]
[1617635326048,81.9317,2106.9,2106.3,12.8617]
[1617635326447,81.9317,2106.9,2106.4,5.86]
[1617635326947,82.8941,2106.9,2106.4,5.86]
[1617635327149,2.90695,2106.5,2106.4,5.86]
[1617635328548,4.69135,2106.5,2106.4,3.48315892]
[1617635328949,4.69135,2106.5,2105.8,5.91]
[1617635329148,2.90695,2105.9,2105.8,5.91]
[1617635329351,2.90695,2105.9,2104.2,12.8962]
[1617635329352,5.53795,2105.9,2104.2,12.8962]
[1617635329548,53.2747,2105.8,2104.2,12.8962]
[1617635329749,53.2747,2105.8,2104.3,12.6387]
[1617635329948,53.2747,2105.8,2105.7,5.2584]
[1617635330148,53.2747,2105.8,2104.3,18.4187]
[1617635330549,53.2747,2105.8,2105.7,5.75]
[1617635330748,5.53795,2105.9,2104.3,12.6387]
[1617635330949,59.0512,2105.7,2104.3,12.6387]
[1617635331150,2.90695,2104.4,2104.3,12.6387]
[1617635331349,4.80745,2104.4,2104.3,12.6387]
[1617635331549,4.80745,2104.4,2104.3,18.3887]
[1617635332750,2.90695,2104.4,2104.3,18.3887]
[1617635332951,62.3123,2104.6,2104.3,18.3887]
[1617635333152,62.3123,2104.6,2104.5,2.90695]
[1617635333350,3.89185619,2107.2,2104.5,2.90695]
[1617635333551,58.5034,2105.4,2104.5,8.87695]
[1617635335152,58.5034,2105.4,2105.3,2.90695]
[1617635335554,58.5034,2105.4,2105.3,5.79]
[1617635335952,58.5034,2105.4,2105.1,5.8]
[1617635336352,58.5034,2105.4,2105.3,5.87]
[1617635336552,58.5034,2105.4,2105.1,5.7]
[1617635336954,58.5034,2105.4,2105.3,5.84]
[1617635337154,58.5034,2105.4,2105.3,2.90695]
[1617635337351,58.5034,2105.4,2105.3,4.79535]
[1617635337552,0.86383524,2107.3,2105.3,10.50535]
[1617635337953,78.0357,2107.5,2105.3,10.50535]
[1617635338357,78.0357,2107.5,2105.4,12.8814]
[1617635338556,77.0909,2107.5,2105.4,10.50342575]
[1617635338757,77.0909,2107.5,2105.5,5.74]
[1617635339157,77.0909,2107.5,2105.9,2.90695]
[1617635339557,78.0338,2107.5,2106.0,5.9]
[1617635340157,78.0338,2107.5,2105.5,5.79]
[1617635340560,78.0338,2107.5,2106.1,5.94]
[1617635340759,78.0338,2107.5,2105.5,5.9]
[1617635341160,77.0909,2107.5,2106.4,2.90695]
[1617635341360,77.0909,2107.5,2106.4,4.62615]
[1617635341560,77.0909,2107.5,2106.5,4.58]
[1617635342561,0.945,2108.7,2106.5,4.58]
[1617635343160,0.945,2108.7,2107.7,2.90695]
[1617635343360,0.945,2108.7,2107.7,5.56315]
[1617635343561,0.945,2108.7,2107.8,5.7]
[1617635345162,0.73685,2107.4,2107.2,2.5588]
[1617635345564,0.73685,2107.4,2107.3,1.95]
[1617635346364,1.67405,2107.4,2107.3,1.95]
[1617635346764,0.73685,2107.4,2107.3,1.95]
[1617635347166,3.6438,2107.4,2107.3,2.90695]
[1617635347567,3.6438,2107.4,2107.3,8.85695]
[1617635347766,3.6438,2107.4,2107.3,5.95]
[1617635347976,4.5914,2107.4,2107.3,5.95]
[1617635348167,4.5914,2107.4,2106.7,5.76]
[1617635348467,4.5914,2107.4,2107.3,5.73]
[1617635348667,3.6438,2107.4,2107.3,5.73]
[1617635348869,3.6438,2107.4,2106.8,5.79]
[1617635349068,3.6438,2107.4,2107.3,5.69]
[1617635349468,3.6438,2107.4,2106.9,5.94]
[1617635349670,3.6438,2107.4,2107.0,5.71]
[1617635349870,3.6438,2107.4,2107.3,0.11]
[1617635350073,3.6438,2107.4,2106.9,5.93]
[1617635350271,3.6438,2107.4,2107.1,5.51]
[1617635350670,3.6438,2107.4,2107.0,5.84]
[1617635350871,0.73685,2107.4,2107.2,5.81]
[1617635351272,0.73685,2107.4,2107.3,2.90695]
[1617635351471,0.73685,2107.4,2107.3,10.59695]
[1617635351871,0.73685,2107.4,2107.3,4.90695]
[1617635352071,67.9973,2108.5,2107.3,40.85695]
[1617635353271,67.9973,2108.5,2108.0,2.90695]
[1617635353673,67.9973,2108.5,2108.1,5.72]
[1617635354074,68.9368,2108.5,2108.1,5.72]
[1617635354279,68.9368,2108.5,2107.4,5.87]
[1617635354473,71.0093,2108.5,2107.4,5.87]
[1617635354674,71.0093,2108.5,2108.2,5.97]
[1617635354874,73.0093,2108.5,2107.5,5.96]
[1617635355277,73.0093,2108.5,2108.3,5.84]
[1617635355474,73.0093,2108.5,2107.6,5.49]
[1617635355676,3.012,2108.5,2107.6,5.49]
[1617635355874,3.012,2108.5,2108.4,5.69]
[1617635356074,3.012,2108.5,2106.7,16.00395]
[1617635356075,3.012,2108.5,2107.7,5.26]
[1617635356475,2.0725,2108.5,2108.4,5.43]
[1617635356676,4.571,2109.2,2107.8,4.63]
[1617635356875,2.3149,2109.1,2107.8,4.63]
[1617635357075,2.0,2109.0,2108.4,5.78]
[1617635357276,2.90695,2108.5,2107.0,6.46695]
[1617635357476,2.90695,2108.5,2107.9,5.08]
[1617635357677,60.2319,2108.3,2107.3,5.93]
[1617635357877,62.2319,2108.3,2107.1,0.24]
[1617635358077,62.2319,2108.3,2108.0,5.78]
[1617635358278,2.3743942,2107.9,2107.4,5.76]
[1617635358478,3.3273942,2107.9,2107.2,0.24]
[1617635358678,3.3273942,2107.9,2107.5,5.38]
[1617635359079,2.3743942,2107.9,2107.3,1.46]
[1617635359281,5.2813442,2107.9,2107.6,2.90695]
[1617635359480,5.2813442,2107.9,2107.6,6.03695]
[1617635359682,5.2813442,2107.9,2107.6,2.90695]
[1617635360084,5.2813442,2107.9,2107.7,5.96]
[1617635360284,5.2813442,2107.9,2107.7,7.9052]
[1617635361284,6.2176442,2107.9,2107.7,5.96]
[1617635361485,3.84325,2107.9,2107.7,5.96]
[1617635361685,3.84325,2107.9,2106.9,5.97]
[1617635361885,6.12725,2107.9,2106.9,5.97]
[1617635362088,5.19095,2107.9,2107.8,5.8]
[1617635362287,5.19095,2107.9,2106.9,5.7]
[1617635362687,5.19095,2107.9,2106.8,2.90695]
[1617635362688,5.19095,2107.9,2107.8,5.86]
[1617635362887,5.19095,2107.9,2106.9,5.76]
[1617635363290,2.284,2107.9,2107.8,5.73]
[1617635363488,2.284,2107.9,2107.0,5.84]
[1617635363890,2.284,2107.9,2107.8,5.93]
[1617635364090,2.284,2107.9,2107.1,5.94]
[1617635364289,60.2319,2108.3,2107.1,5.94]
[1617635364488,60.2319,2108.3,2106.6,13.7275]
[1617635364489,60.2319,2108.3,2107.8,5.87]
[1617635364693,60.2319,2108.3,2107.0,5.87]
[1617635364891,60.2319,2108.3,2107.2,5.75]
[1617635365092,60.2319,2108.3,2107.1,5.87]
[1617635365291,2.90695,2107.2,2107.1,5.87]
[1617635365491,2.90695,2107.2,2107.0,5.85]
[1617635365692,2.90695,2107.2,2107.1,5.92]
[1617635366091,2.90695,2107.2,2107.0,5.86]
[1617635366291,2.90695,2107.2,2107.1,4.58]
[1617635366691,2.90695,2107.2,2106.7,16.00395]
[1617635366891,2.90695,2107.2,2107.1,5.77]
[1617635367292,2.90695,2107.2,2106.9,5.87]
[1617635367494,2.90695,2107.2,2107.1,5.7]
[1617635367892,2.90695,2107.2,2107.0,5.81]
[1617635368092,2.90695,2107.2,2106.8,3.54348378]
[1617635368294,2.90695,2107.2,2107.1,5.79]
[1617635368493,2.90695,2107.2,2106.8,5.88]
[1617635368892,2.90695,2107.2,2107.1,5.98]
[1617635369092,2.90695,2107.2,2106.8,5.96]
[1617635369292,2.90695,2106.9,2106.8,5.96]
[1617635369493,2.90695,2106.9,2106.7,13.097]
[1617635369692,2.90695,2106.9,2106.8,5.83]
[1617635370293,60.2319,2108.3,2106.8,8.0514]
[1617635371293,60.2319,2108.3,2107.4,2.90695]
[1617635371493,60.2319,2108.3,2107.4,4.82915]
[1617635371695,60.2319,2108.3,2107.5,5.8]
[1617635373496,2.90695,2107.6,2107.3,2.90695]
[1617635373896,2.90695,2107.6,2107.4,5.72]
[1617635375502,2.90695,2107.6,2107.4,7.6154]
[1617635378107,69.3953,2109.2,2107.4,37.6154]
[1617635378306,69.3953,2109.2,2107.4,7.6154]
[1617635378506,70.3334,2109.2,2107.4,7.6154]
[1617635379108,70.3334,2109.2,2107.4,5.24000153]
[1617635379308,69.3953,2109.2,2107.4,5.24000153]
[1617635380312,69.3953,2109.2,2107.5,2.0]
[1617635380513,69.3953,2109.2,2107.5,30.0]
[1617635380712,69.3953,2109.2,2107.6,5.92]
[1617635381112,69.3953,2109.2,2107.6,35.92]
[1617635381512,2.571,2109.2,2108.2,2.90695]
[1617635381713,2.571,2109.2,2108.2,5.53355]
[1617635381915,2.571,2109.2,2108.3,2.69]
[1617635382216,2.571,2109.2,2108.3,32.69]
[1617635383114,5.098,2109.8,2108.3,32.69]
[1617635383519,5.098,2109.8,2109.1,2.90695]
[1617635383716,4.571,2110.5,2109.1,4.81595]
[1617635383921,4.571,2110.5,2109.2,5.85]
[1617635384116,2.571,2110.5,2109.2,5.85]
[1617635385425,2.90695,2109.3,2109.1,2.90695]
[1617635385817,2.90695,2109.3,2109.2,5.73]
[1617635387817,0.43089198,2110.1,2109.2,5.73]
[1617635388217,6.36305,2109.1,2108.8,2.7647]
[1617635388619,6.36305,2109.1,2108.9,1.77]
[1617635389419,9.27,2109.1,2109.0,2.90695]
[1617635389818,9.27,2109.1,2109.0,8.68695]
[1617635390019,3.4105,2109.1,2109.0,8.68695]
[1617635392520,0.50355,2109.1,2109.0,8.68695]
[1617635393322,65.7459,2110.5,2109.0,38.68695]
[1617635393521,2.40345,2109.1,2109.0,38.68695]
[1617635393721,65.7459,2110.5,2109.0,38.68695]
[1617635394523,65.7459,2110.5,2109.0,40.68695]
[1617635395427,65.7459,2110.5,2109.3,2.90695]
[1617635395824,65.7459,2110.5,2109.4,5.7]
[1617635396026,65.7459,2110.5,2109.4,8.2851]
[1617635396426,2.571,2110.5,2109.4,38.2851]
[1617635397425,2.571,2110.5,2109.9,2.90695]
[1617635397627,2.571,2110.5,2109.9,5.30745]
[1617635397830,2.571,2110.5,2110.0,5.74]
[1617635398629,2.571,2110.5,2109.5,5.68]
[1617635398829,2.571,2110.5,2110.1,5.95]
[1617635399229,2.571,2110.5,2109.5,5.8]
[1617635399431,2.37247265,2109.6,2109.2,77.4486]
[1617635399829,2.37247265,2109.6,2109.5,5.93]
[1617635400229,2.37247265,2109.6,2109.2,2.0]
[1617635400430,2.37247265,2109.6,2109.5,5.85]
[1617635400830,2.37247265,2109.6,2109.3,5.82]
[1617635401030,2.37247265,2109.6,2109.5,5.79]
[1617635401431,2.37247265,2109.6,2109.4,5.52]
[1617635401634,2.37247265,2109.6,2109.1,2.90695]
[1617635401831,2.90695,2109.7,2109.5,5.78]
[1617635402034,2.90695,2109.7,2109.2,5.76]
[1617635402432,2.90695,2109.7,2109.6,5.97]
[1617635402632,2.90695,2109.7,2109.2,5.9]
[1617635402933,2.90695,2109.7,2109.6,5.73]
[1617635403334,2.90695,2109.7,2109.2,5.74]
[1617635403536,0.43197788,2110.3,2109.6,5.72]
[1617635403934,0.43197788,2110.3,2109.5,2.90695]
[1617635404133,0.43197788,2110.3,2109.6,5.83]
[1617635404333,3.21896683,2110.5,2109.6,38.6215]
[1617635404334,0.43201273,2110.4,2109.6,38.6215]
[1617635404734,3.00277834,2110.5,2109.6,38.6215]
[1617635404933,2.571,2110.5,2109.6,38.6215]
[1617635405533,2.571,2110.5,2110.1,2.90695]
[1617635405733,2.571,2110.5,2110.1,4.67015]
[1617635405933,2.571,2110.5,2110.2,5.87]
[1617635407535,2.90695,2110.3,2110.2,5.87]
[1617635407736,5e-05,2110.3,2110.2,35.87]
[1617635407939,2.571,2110.5,2110.2,35.87]
[1617635408138,0.43173114,2110.9,2110.2,105.1934]
[1617635408339,0.43195381,2111.0,2110.2,105.1934]
[1617635408538,0.43195381,2111.0,2110.2,8.7001]
[1617635408738,0.43203441,2111.1,2110.2,6.32772207]
[1617635409139,0.43207169,2111.2,2110.2,6.32772207]
[1617635409341,0.43207169,2111.2,2110.2,36.32772207]
[1617635409538,0.43207169,2111.2,2110.8,2.90695]
[1617635409739,0.43207169,2111.2,2110.8,5.58945]
[1617635409939,0.43207169,2111.2,2110.9,5.88]
[1617635410739,0.43228115,2111.3,2110.9,5.88]
[1617635411139,0.43227266,2111.2,2110.9,5.88]
[1617635411339,2.83777266,2111.2,2110.9,5.88]
[1617635411538,2.83777266,2111.2,2109.7,13.2142]
[1617635411539,2.90695,2111.0,2110.3,5.88]
[1617635411740,2.90695,2111.0,2109.7,13.2142]
[1617635412139,0.43167213,2110.3,2109.9,5.74]
[1617635412340,2.51077213,2110.3,2109.9,5.74]
[1617635412540,2.51077213,2110.3,2109.7,13.2142]
[1617635412541,0.43186463,2110.2,2109.7,13.2142]
[1617635412741,0.43186463,2110.2,2110.0,5.68]
[1617635413141,2.0791,2110.3,2109.8,5.74]
[1617635413142,0.43188624,2110.1,2109.8,5.74]
[1617635413342,0.43188624,2110.1,2109.7,13.2142]
[1617635413543,2.90695,2109.8,2109.7,13.2142]
[1617635413744,4.75115,2109.8,2109.7,13.2142]
[1617635413943,4.75115,2109.8,2109.7,18.9642]
[1617635415344,2.90695,2109.8,2109.7,18.9642]
[1617635417549,2.90695,2109.8,2109.7,5.75]
[1617635417949,2.90695,2109.8,2109.3,5.78]
[1617635418349,2.90695,2109.8,2109.7,3.44681134]
[1617635418551,2.90695,2109.8,2109.3,5.8]
[1617635418949,2.90695,2109.8,2109.7,5.91]
[1617635419149,2.90695,2109.8,2109.3,5.96]
[1617635419549,0.43121798,2110.4,2109.7,5.94]
[1617635419751,0.43115156,2110.3,2109.2,12.7512]
[1617635419949,0.43115156,2110.3,2109.3,5.93]
[1617635420151,0.43115156,2110.3,2109.2,12.7512]
[1617635420152,0.43119833,2110.4,2109.8,5.96]
[1617635420351,0.43119833,2110.4,2109.2,12.7512]
[1617635420550,2.65319833,2110.4,2109.3,5.93]
[1617635420750,2.65319833,2110.4,2109.9,5.95]
[1617635421155,2.65319833,2110.4,2109.3,5.83]
[1617635421353,2.65319833,2110.4,2110.0,5.7]
[1617635421554,2.90695,2110.1,2110.0,5.7]
[1617635421755,2.90695,2110.1,2109.3,5.97]
[1617635421955,2.90695,2110.1,2110.0,5.85]
[1617635422355,2.90695,2110.1,2109.2,12.7512]
[1617635422356,2.90695,2110.1,2109.3,5.7]
[1617635422756,2.90695,2110.1,2109.2,12.7512]
[1617635422757,2.90695,2110.1,2110.0,5.69]
[1617635422955,2.90695,2110.1,2109.3,5.85]
[1617635423357,2.90695,2110.1,2110.0,5.7704]
[1617635423555,2.90695,2110.1,2109.3,5.74]
[1617635423957,2.90695,2110.1,2110.0,5.8]
[1617635424157,2.90695,2110.1,2109.3,5.75]
[1617635424557,2.90695,2110.1,2110.0,5.95]
[1617635424759,2.90695,2110.1,2109.3,3.53687476]